fUSD/lending_fUSD_20250116
["ID","MTS","AMOUNT","RATE_DAILY","PERIOD"]
[349165300,1737001847080,-500.0,0.00043499,25]
[349165302,1737001847090,-500.0,0.00043499,25]
[349165304,1737001847100,-500.0,0.00043499,25]
[349165306,1737001847109,-500.0,0.00043499,25]
[349165308,1737001847119,-500.0,0.00043499,25]
[349165310,1737001847128,-500.0,0.00043499,25]
[349165312,1737001847137,-500.0,0.00043499,25]
[349165314,1737001847147,-188.66254494,0.00043499,25]
[349165316,1737001847156,-500.0,0.00043499,25]
[349165318,1737001847165,-500.0,0.00043499,25]
[349165320,1737001847174,-500.0,0.00043499,25]
[349165322,1737001847183,-188.98,0.00043499,25]
[349165324,1737001847195,-500.0,0.00043499,25]
[349165326,1737001847205,-500.0,0.00043499,25]
[349165328,1737001847214,-500.0,0.00043499,25]
[349165330,1737001847224,-500.0,0.00043499,25]
[349165332,1737001847234,-500.0,0.00043499,25]
[349165334,1737001847243,-500.0,0.00043499,25]
[349165336,1737001847253,-500.0,0.00043499,25]
[349165338,1737001847262,-500.0,0.00043499,25]
[349165340,1737001847271,-500.0,0.00043499,25]
[349165342,1737001847281,-500.0,0.00043499,25]
[349165344,1737001847290,-500.0,0.00043499,25]
[349165346,1737001847299,-500.0,0.00043499,25]
[349165348,1737001847308,-500.0,0.00043499,25]
[349165350,1737001847317,-390.31,0.00043499,25]
[349165352,1737001847326,-500.0,0.00043499,25]
[349165354,1737001847335,-500.0,0.00043499,25]
[349165356,1737001847344,-500.0,0.00043499,25]
[349165357,1737001847354,-500.0,0.00043499,25]
[349165358,1737001847363,-500.0,0.00043499,25]
[349165359,1737001847373,-500.0,0.00043499,25]
[349165360,1737001847383,-500.0,0.00043499,25]
[349165361,1737001847393,-500.0,0.00043499,25]
[349165362,1737001847402,-500.0,0.00043499,25]
[349165363,1737001847411,-500.0,0.00043499,25]
[349165364,1737001847421,-500.0,0.00043499,25]
[349165365,1737001847430,-515.21822831,0.00043499,25]
[349165367,1737001847440,-500.0,0.00043499,25]
[349165369,1737001847449,-500.0,0.00043499,25]
[349165371,1737001847458,-500.0,0.00043499,25]
[349165373,1737001847468,-500.0,0.00043499,25]
[349165374,1737001847477,-500.0,0.00043499,25]
[349165376,1737001847487,-500.0,0.00043499,25]
[349165378,1737001847496,-500.0,0.00043499,25]
[349165380,1737001847505,-500.0,0.00043499,25]
[349165382,1737001847514,-500.0,0.00043499,25]
[349165384,1737001847524,-380.5610553,0.00043499,25]
[349165386,1737001847534,-500.0,0.00043499,25]
[349165388,1737001847543,-500.0,0.00043499,25]
[349165390,1737001847552,-239.79,0.00043499,25]
[349165392,1737001847562,-682.59,0.00043499,25]
[349165394,1737001847571,-682.59,0.00043499,25]
[349165396,1737001847580,-682.59,0.00043499,25]
[349165398,1737001847589,-682.59,0.00043499,25]
[349165400,1737001847599,-682.59,0.00043499,25]
[349165402,1737001847609,-682.59,0.00043499,25]
[349165404,1737001847618,-682.59,0.00043499,25]
[349165406,1737001847627,-682.59,0.00043499,25]
[349165408,1737001847637,-151.0,0.00043499,14]
[349165410,1737001847646,-682.59,0.00043499,25]
[349165412,1737001847655,-682.59,0.00043499,25]
[349165414,1737001847665,-151.0,0.00043499,14]
[349165416,1737001847674,-682.59,0.00043499,25]
[349165418,1737001847683,-500.0,0.00043499,25]
[349165420,1737001847693,-682.59,0.00043499,25]
[349165422,1737001847702,-500.0,0.00043499,25]
[349165424,1737001847712,-682.59,0.00043499,25]
[349165426,1737001847721,-500.0,0.00043499,25]
[349165428,1737001847730,-500.0,0.00043499,25]
[349165430,1737001847740,-682.59,0.00043499,25]
[349165432,1737001847749,-273.70102415,0.00043499,25]
[349165434,1737001847758,-682.59,0.00043499,25]
[349165436,1737001847768,-682.59,0.00043499,25]
[349165438,1737001847778,-682.6,0.00043499,25]
[349165440,1737001847787,-385.96255265,0.00043499,25]
[349165442,1737001847797,-522.87,0.00043499,25]
[349165444,1737001847806,-522.87,0.00043499,25]
[349165446,1737001847815,-522.87,0.00043499,25]
[349165448,1737001847825,-522.87,0.00043499,25]
[349165450,1737001847834,-522.87,0.00043499,25]
[349165452,1737001847843,-522.87,0.00043499,25]
[349165454,1737001847853,-522.87,0.00043499,25]
[349165456,1737001847862,-522.87,0.00043499,25]
[349165458,1737001847871,-522.87,0.00043499,25]
[349165460,1737001847881,-522.87,0.00043499,25]
[349165462,1737001847890,-522.87,0.00043499,25]
[349165464,1737001847899,-522.87,0.00043499,25]
[349165466,1737001847909,-522.87,0.00043499,25]
[349165468,1737001847920,-522.87,0.00043499,25]
[349165470,1737001847929,-522.87,0.00043499,25]
[349165472,1737001847939,-522.87,0.00043499,25]
[349165474,1737001847952,-522.99322858,0.00043499,25]
[349165476,1737001847961,-536.98,0.00043499,25]
[349165478,1737001847971,-536.98,0.00043499,25]
[349165480,1737001847980,-536.98,0.00043499,25]
[349165482,1737001847991,-536.98,0.00043499,25]
[349165484,1737001848000,-536.98,0.00043499,25]
[349165486,1737001848010,-536.98,0.00043499,25]
[349165488,1737001848020,-536.98,0.00043499,25]
[349165490,1737001848030,-536.98,0.00043499,25]
[349165492,1737001848040,-536.98,0.00043499,25]
[349165494,1737001848049,-536.98,0.00043499,25]
[349165496,1737001848059,-536.98,0.00043499,25]
[349165498,1737001848069,-536.98,0.00043499,25]
[349165500,1737001848078,-536.98,0.00043499,25]
[349165502,1737001848088,-536.98,0.00043499,25]
[349165504,1737001848097,-536.98,0.00043499,25]
[349165506,1737001848108,-536.98,0.00043499,25]
[349165508,1737001848118,-537.19046313,0.00043499,25]
[349165510,1737001848128,-500.0,0.00043499,25]
[349165512,1737001848138,-500.0,0.00043499,25]
[349165514,1737001848147,-500.0,0.00043499,25]
[349165516,1737001848156,-500.0,0.00043499,25]
[349165518,1737001848166,-500.0,0.00043499,25]
[349165520,1737001848175,-500.0,0.00043499,25]
[349165522,1737001848184,-500.0,0.00043499,25]
[349165524,1737001848194,-500.0,0.00043499,25]
[349165526,1737001848204,-300.63,0.00043499,25]
[349165528,1737001848213,-500.0,0.00043499,25]
[349165530,1737001848223,-500.0,0.00043499,25]
[349165532,1737001848232,-500.0,0.00043499,25]
[349165534,1737001848241,-500.0,0.00043499,25]
[349165536,1737001848251,-500.0,0.00043499,25]
[349165538,1737001848260,-500.0,0.00043499,25]
[349165540,1737001848269,-500.0,0.00043499,25]
[349165542,1737001848279,-500.0,0.00043499,25]
[349165544,1737001848289,-500.0,0.00043499,25]
[349165546,1737001848298,-500.0,0.00043499,25]
[349165548,1737001848308,-500.0,0.00043499,25]
[349165550,1737001848317,-500.0,0.00043499,25]
[349165552,1737001848327,-166.2386041,0.00043499,25]
[349165554,1737001848336,-630.09,0.00043499,25]
[349165556,1737001848346,-630.09,0.00043499,25]
[349165558,1737001848356,-1382.26,0.00043499,25]
[349165560,1737001848366,-630.09,0.00043499,25]
[349165562,1737001848375,-1382.26,0.00043499,25]
[349165564,1737001848385,-630.09,0.00043499,25]
[349165566,1737001848395,-1382.26,0.00043499,25]
[349165568,1737001848405,-630.09,0.00043499,25]
[349165570,1737001848415,-1382.26,0.00043499,25]
[349165572,1737001848425,-630.09,0.00043499,25]
[349165574,1737001848434,-1382.26,0.00043499,25]
[349165576,1737001848444,-630.09,0.00043499,25]
[349165578,1737001848453,-1382.26,0.00043499,25]
[349165580,1737001848463,-630.09,0.00043499,25]
[349165582,1737001848472,-1382.26,0.00043499,25]
[349165584,1737001848482,-630.09,0.00043499,25]
[349165586,1737001848492,-1382.26,0.00043499,25]
[349165588,1737001848501,-630.09,0.00043499,25]
[349165590,1737001848511,-1382.26,0.00043499,25]
[349165592,1737001848521,-630.09,0.00043499,25]
[349165594,1737001848531,-1382.26,0.00043499,25]
[349165596,1737001848540,-630.09,0.00043499,25]
[349165598,1737001848550,-1382.26,0.00043499,25]
[349165601,1737001848560,-630.09,0.00043499,25]
[349165603,1737001848569,-1382.26,0.00043499,25]
[349165605,1737001848579,-630.09,0.00043499,25]
[349165607,1737001848589,-1382.26,0.00043499,25]
[349165609,1737001848598,-630.09,0.00043499,25]
[349165611,1737001848609,-1382.26,0.00043499,25]
[349165613,1737001848619,-1270.695934,0.00043499,14]
[349165615,1737001848629,-630.09,0.00043499,25]
[349165617,1737001848639,-583.13068539,0.00043499,25]
[349165623,1737001848688,-799.12931461,0.00043499,25]
[349165636,1737001848805,-1270.695934,0.00043499,14]
[349165639,1737001848816,-630.2,0.00043499,25]
[349165641,1737001848825,-1382.26,0.00043499,25]
[349165642,1737001848834,-1382.26,0.00043499,25]
[349165645,1737001848844,-1382.46,0.00043499,25]
[349165647,1737001848853,-1270.695934,0.00043499,14]
[349165648,1737001848862,-1270.695934,0.00043499,14]
[349165650,1737001848871,-500.0,0.00043499,31]
[349165651,1737001848880,-500.0,0.00043499,31]
[349165653,1737001848890,-500.0,0.00043499,31]
[349165655,1737001848899,-441.68129676,0.00043499,31]
[349165657,1737001848908,-527.3424131,0.00043499,31]
[349165659,1737001848918,-500.0,0.00043499,31]
[349165661,1737001848927,-500.0,0.00043499,31]
[349165663,1737001848936,-257.39629573,0.00043499,31]
[349165665,1737001848947,-500.0,0.00043499,31]
[349165667,1737001848957,-627.78639371,0.00043499,31]
[349165669,1737001848967,-236.42071041,0.00043499,31]
[349165671,1737001848978,-201.21,0.00043499,7]
[349165672,1737001848990,-195592.98409595,0.000435,37]
[349165675,1737001849002,-8559.81171831,0.000435,37]
[349165677,1737001849014,-3429.60453329,0.000435,37]
[349165679,1737001849024,-193.47787782,0.000435,2]
[349165680,1737001849033,-38977.76387689,0.000435,31]
[349165681,1737001849045,-43119.97041,0.000435,31]
[349165682,1737001849056,-708850.78166975,0.000435,31]
[349165683,1737001849072,-1122.1826935,0.000435,31]
[349165684,1737001849083,-238272.50579697,0.000435,31]
[349165685,1737001849095,-9551.96517079,0.000435,31]
[349165686,1737001849107,-5462.24845647,0.000435,31]
[349165687,1737001849118,-8940.77294004,0.000435,31]
[349165688,1737001849129,-1572.82199258,0.000435,31]
[349165689,1737001849140,-2015.5748179,0.000435,31]
[349165690,1737001849151,-467.52,0.000435,31]
[349165691,1737001849163,-429.8761991,0.000435,31]
[349165701,1737001849256,-325.66881823,0.000435,31]
[349165704,1737001849279,-1347.34000001,0.000435,31]
[349165707,1737001849290,-1592.36763959,0.000435,31]
[349165709,1737001849301,-1804.92310784,0.000435,31]
[349165711,1737001849312,-642.97607776,0.000435,31]
[349165713,1737001849323,-1963.29169128,0.000435,31]
[349165715,1737001849334,-1971.70061573,0.000435,31]
[349165717,1737001849345,-5402.2809907,0.000435,31]
[349165720,1737001849357,-28139.33281274,0.000435,31]
[349165723,1737001849384,-192.07763029,0.000429,120]
[349165726,1737001849394,-270.6159311,0.00043267,25]
[349165728,1737001849403,-8848.34865283,0.000435,31]
[349165730,1737001849414,-27187.52882515,0.000435,31]
[349165732,1737001849425,-996.24,0.000435,31]
[349165734,1737001849440,-151.0,0.00043265,14]
[349165737,1737001849450,-1157.78683986,0.000435,31]
[349165742,1737001849493,-151.0,0.00043267,14]
[349165744,1737001849503,-151.0,0.00043269,14]
[349165746,1737001849512,-151.0,0.00043388,14]
[349165748,1737001849522,-151.0,0.0004342,14]
[349165750,1737001849531,-151.0,0.00043498,14]
[349165752,1737001849542,-151.0,0.00043499,14]
[349165754,1737001849552,-369.5994093,0.000435,31]
[349165784,1737001849843,-175.44376005,0.000435,31]
[349165786,1737001849855,-2050.54773847,0.000435,31]
[349165788,1737001849866,-251.10073731,0.000435,31]
[349165790,1737001849877,-843.03566312,0.000435,31]
[349165793,1737001849894,-432.00902886,0.000435,7]
[349165811,1737001850159,-121.09583254,0.000435,7]
[349166476,1737002963143,-150.78494032,0.000219,2]
[349166489,1737003031770,-9.12358603,0.000219,2]
[349166490,1737003031780,-152.817,0.0004132,2]
[349166491,1737003031789,-279.48,0.00042018,2]
[349166492,1737003031798,-525.4842438,0.00042018,2]
[349166493,1737003031810,-1598.29284545,0.00042018,2]
[349166494,1737003031821,-852.87433175,0.00042018,2]
[349166495,1737003031833,-20923.348579,0.00042018,2]
[349166496,1737003031842,-2000.0,0.0004207,120]
[349166497,1737003031851,-250.0,0.00042083,2]
[349166498,1737003031861,-1000.0,0.00042099,2]
[349166499,1737003031870,-250.0,0.00042163,2]
[349166500,1737003031879,-250.0,0.00042369,120]
[349166501,1737003031889,-312.12,0.00042369,120]
[349166502,1737003031898,-875.32,0.00042603,30]
[349166503,1737003031907,-815.88,0.00042739,120]
[349166504,1737003031917,-3276.740071,0.000428,90]
[349166505,1737003031926,-999.99,0.000428,2]
[349166506,1737003031935,-299.99,0.000428,120]
[349166507,1737003031945,-25433.78,0.000428,30]
[349166508,1737003031954,-150.99,0.000428,2]
[349166509,1737003031963,-227.7779186,0.000429,9]
[349166510,1737003031972,-150.6195984,0.00042912,120]
[349166511,1737003031982,-5000.0,0.00042913,2]
[349166512,1737003031991,-1000.0,0.00042913,2]
[349166513,1737003032000,-150.61959839,0.00042943,120]
[349166514,1737003032009,-150.61959839,0.00042973,120]
[349166515,1737003032018,-150.0,0.00042999,4]
[349166516,1737003032027,-772.39,0.00043,30]
[349166517,1737003032036,-35089.81463622,0.00043,120]
[349166518,1737003032048,-1482.6,0.00043,120]
[349166519,1737003032059,-1319.8380045,0.00043,120]
[349166520,1737003032070,-62107.74735928,0.00043,120]
[349166521,1737003032079,-16322.0,0.00043,8]
[349166522,1737003032088,-150.61959839,0.00043004,120]
[349166523,1737003032097,-1852.549,0.00043012,66]
[349166524,1737003032107,-175.408,0.00043012,66]
[349166525,1737003032116,-500.0,0.00043013,25]
[349166526,1737003032127,-500.0,0.00043013,25]
[349166527,1737003032136,-556.65118873,0.00043013,25]
[349166528,1737003032145,-500.0,0.00043013,25]
[349166530,1737003032154,-500.0,0.00043013,25]
[349166531,1737003032163,-444.40700712,0.00043013,25]
[349166532,1737003032172,-503.66261439,0.00043013,25]
[349166533,1737003032181,-598.52854957,0.00043013,25]
[349166534,1737003032191,-500.0,0.00043013,25]
[349166535,1737003032200,-500.0,0.00043013,25]
[349166536,1737003032209,-507.0496675,0.00043013,25]
[349166537,1737003032218,-500.0,0.00043013,25]
[349166538,1737003032227,-500.0,0.00043013,25]
[349166539,1737003032235,-500.0,0.00043013,25]
[349166540,1737003032245,-500.0,0.00043013,25]
[349166541,1737003032254,-506.0541563,0.00043013,25]
[349166542,1737003032263,-500.0,0.00043013,25]
[349166543,1737003032273,-500.0,0.00043013,25]
[349166544,1737003032282,-505.23124055,0.00043013,25]
[349166545,1737003032291,-500.0,0.00043013,25]
[349166546,1737003032300,-500.0,0.00043013,25]
[349166548,1737003032310,-500.0,0.00043013,25]
[349166549,1737003032321,-500.0,0.00043013,25]
[349166551,1737003032331,-500.0,0.00043013,25]
[349166553,1737003032340,-500.0,0.00043013,25]
[349166555,1737003032349,-508.56711051,0.00043013,25]
[349166557,1737003032359,-503.15404756,0.00043013,25]
[349166559,1737003032371,-500.0,0.00043013,25]
[349166560,1737003032381,-500.0,0.00043013,25]
[349166562,1737003032391,-500.0,0.00043013,25]
[349166564,1737003032400,-500.0,0.00043013,25]
[349166566,1737003032409,-500.0,0.00043013,25]
[349166568,1737003032418,-500.0,0.00043013,25]
[349166570,1737003032427,-500.0,0.00043013,25]
[349166571,1737003032436,-505.45833049,0.00043013,25]
[349166572,1737003032445,-506.02401464,0.00043013,25]
[349166573,1737003032455,-500.0,0.00043013,25]
[349166574,1737003032464,-500.0,0.00043013,25]
[349166575,1737003032473,-500.0,0.00043013,25]
[349166576,1737003032483,-500.0,0.00043013,25]
[349166577,1737003032493,-500.0,0.00043013,25]
[349166578,1737003032502,-500.0,0.00043013,25]
[349166579,1737003032511,-500.0,0.00043013,25]
[349166580,1737003032521,-500.0,0.00043013,25]
[349166581,1737003032530,-505.9800125,0.00043013,25]
[349166582,1737003032539,-500.0,0.00043013,25]
[349166583,1737003032549,-500.0,0.00043013,25]
[349166584,1737003032558,-500.0,0.00043013,25]
[349166585,1737003032567,-500.0,0.00043013,25]
[349166586,1737003032576,-500.0,0.00043013,25]
[349166587,1737003032585,-500.0,0.00043013,25]
[349166588,1737003032594,-509.48164724,0.00043013,25]
[349166589,1737003032603,-500.0,0.00043013,25]
[349166590,1737003032612,-500.0,0.00043013,25]
[349166591,1737003032621,-500.0,0.00043013,25]
[349166592,1737003032632,-500.0,0.00043013,25]
[349166593,1737003032641,-500.0,0.00043013,25]
[349166594,1737003032650,-500.0,0.00043013,25]
[349166595,1737003032659,-505.07867709,0.00043013,25]
[349166596,1737003032669,-501.86701556,0.00043013,25]
[349166597,1737003032678,-500.0,0.00043013,25]
[349166598,1737003032688,-500.0,0.00043013,25]
[349166599,1737003032697,-509.00789039,0.00043013,25]
[349166600,1737003032706,-500.0,0.00043013,25]
[349166601,1737003032715,-500.0,0.00043013,25]
[349166602,1737003032725,-500.0,0.00043013,25]
[349166603,1737003032734,-500.0,0.00043013,25]
[349166604,1737003032743,-500.0,0.00043013,25]
[349166605,1737003032752,-500.0,0.00043013,25]
[349166606,1737003032761,-500.0,0.00043013,25]
[349166607,1737003032770,-500.0,0.00043013,25]
[349166608,1737003032779,-500.0,0.00043013,25]
[349166609,1737003032789,-500.0,0.00043013,25]
[349166610,1737003032798,-500.0,0.00043013,25]
[349166611,1737003032807,-500.0,0.00043013,25]
[349166612,1737003032816,-500.0,0.00043013,25]
[349166613,1737003032826,-500.0,0.00043013,25]
[349166614,1737003032835,-500.0,0.00043013,25]
[349166615,1737003032844,-500.0,0.00043013,25]
[349166616,1737003032854,-504.89048461,0.00043013,25]
[349166617,1737003032863,-500.0,0.00043013,25]
[349166618,1737003032872,-500.0,0.00043013,25]
[349166619,1737003032882,-500.0,0.00043013,25]
[349166620,1737003032891,-500.0,0.00043013,25]
[349166621,1737003032901,-500.0,0.00043013,25]
[349166622,1737003032910,-500.0,0.00043013,25]
[349166623,1737003032919,-500.0,0.00043013,25]
[349166624,1737003032929,-500.0,0.00043013,25]
[349166625,1737003032938,-500.0,0.00043013,25]
[349166626,1737003032948,-500.0,0.00043013,25]
[349166627,1737003032958,-500.0,0.00043013,25]
[349166628,1737003032968,-500.0,0.00043013,25]
[349166629,1737003032978,-500.0,0.00043013,25]
[349166630,1737003032988,-500.0,0.00043013,25]
[349166631,1737003032998,-503.67385445,0.00043013,25]
[349166632,1737003033008,-500.0,0.00043013,25]
[349166633,1737003033019,-500.0,0.00043013,25]
[349166634,1737003033028,-500.0,0.00043013,25]
[349166635,1737003033038,-500.0,0.00043013,25]
[349166636,1737003033048,-500.0,0.00043013,25]
[349166637,1737003033058,-500.0,0.00043013,25]
[349166638,1737003033069,-500.0,0.00043013,25]
[349166639,1737003033079,-501.85589534,0.00043013,25]
[349166640,1737003033089,-500.0,0.00043013,25]
[349166641,1737003033099,-500.0,0.00043013,25]
[349166642,1737003033109,-500.0,0.00043013,25]
[349166643,1737003033118,-500.0,0.00043013,25]
[349166644,1737003033129,-500.0,0.00043013,25]
[349166645,1737003033138,-510.3671552,0.00043013,25]
[349166646,1737003033149,-500.0,0.00043013,25]
[349166647,1737003033163,-500.0,0.00043013,25]
[349166648,1737003033173,-500.0,0.00043013,25]
[349166649,1737003033182,-500.0,0.00043013,25]
[349166650,1737003033192,-500.0,0.00043013,25]
[349166651,1737003033202,-500.0,0.00043013,25]
[349166652,1737003033212,-500.0,0.00043013,25]
[349166653,1737003033222,-504.37696618,0.00043013,25]
[349166654,1737003033232,-500.0,0.00043013,25]
[349166655,1737003033242,-505.12094822,0.00043013,25]
[349166656,1737003033252,-500.0,0.00043013,25]
[349166657,1737003033261,-500.0,0.00043013,25]
[349166658,1737003033270,-500.0,0.00043013,25]
[349166659,1737003033280,-502.90130693,0.00043013,25]
[349166660,1737003033290,-500.0,0.00043013,25]
[349166661,1737003033300,-501.12551389,0.00043013,25]
[349166662,1737003033310,-450.47800923,0.00043013,25]
[349166663,1737003033322,-500.0,0.00043013,25]
[349166664,1737003033332,-500.0,0.00043013,25]
[349166665,1737003033342,-573.37302859,0.00043013,25]
[349166666,1737003033352,-500.0,0.00043013,7]
[349166667,1737003033363,-500.0,0.00043013,25]
[349166668,1737003033372,-504.39591571,0.00043013,25]
[349166669,1737003033383,-500.0,0.00043013,25]
[349166670,1737003033393,-500.0,0.00043013,25]
[349166671,1737003033403,-517.32487157,0.00043013,25]
[349166672,1737003033413,-500.0,0.00043013,25]
[349166673,1737003033424,-500.0,0.00043013,25]
[349166674,1737003033435,-500.0,0.00043013,25]
[349166675,1737003033444,-500.0,0.00043013,25]
[349166676,1737003033454,-505.18827946,0.00043013,25]
[349166677,1737003033464,-500.0,0.00043013,25]
[349166678,1737003033473,-604.17,0.00043013,25]
[349166679,1737003033483,-500.0,0.00043013,25]
[349166680,1737003033493,-500.0,0.00043013,25]
[349166681,1737003033503,-186.65514127,0.00043013,25]
[349166682,1737003033512,-500.0,0.00043013,25]
[349166683,1737003033522,-504.21882559,0.00043013,25]
[349166684,1737003033532,-501.30275297,0.00043013,25]
[349166685,1737003033542,-500.0,0.00043013,25]
[349166686,1737003033552,-524.58166364,0.00043013,25]
[349166687,1737003033562,-500.0,0.00043013,25]
[349166688,1737003033572,-500.0,0.00043013,25]
[349166689,1737003033582,-500.0,0.00043013,25]
[349166690,1737003033591,-500.0,0.00043013,25]
[349166691,1737003033601,-500.0,0.00043013,25]
[349166692,1737003033610,-500.0,0.00043013,25]
[349166693,1737003033620,-500.0,0.00043013,25]
[349166694,1737003033631,-500.0,0.00043013,25]
[349166695,1737003033641,-500.0,0.00043013,25]
[349166696,1737003033650,-500.0,0.00043013,25]
[349166697,1737003033659,-502.79136194,0.00043013,25]
[349166698,1737003033669,-500.0,0.00043013,25]
[349166699,1737003033679,-369.49939739,0.00043013,25]
[349166700,1737003033689,-500.0,0.00043013,25]
[349166701,1737003033698,-500.0,0.00043013,25]
[349166702,1737003033709,-500.0,0.00043013,25]
[349166703,1737003033718,-500.0,0.00043013,25]
[349166704,1737003033728,-500.0,0.00043013,25]
[349166705,1737003033738,-556.15,0.00043013,25]
[349166706,1737003033748,-500.0,0.00043013,25]
[349166707,1737003033758,-503.42552642,0.00043013,25]
[349166708,1737003033768,-500.0,0.00043013,25]
[349166709,1737003033778,-500.0,0.00043013,25]
[349166710,1737003033789,-505.99151233,0.00043013,25]
[349166711,1737003033799,-504.50488073,0.00043013,25]
[349166712,1737003033809,-500.0,0.00043013,25]
[349166713,1737003033818,-596.94,0.00043013,25]
[349166714,1737003033828,-500.0,0.00043013,2]
[349166715,1737003033838,-160.7445331,0.00043013,25]
[349166716,1737003033848,-500.0,0.00043013,25]
[349166717,1737003033857,-500.0,0.00043013,25]
[349166718,1737003033867,-500.0,0.00043013,25]
[349166719,1737003033877,-500.0,0.00043013,25]
[349166720,1737003033887,-500.0,0.00043013,25]
[349166721,1737003033896,-500.0,0.00043013,25]
[349166722,1737003033906,-295.2,0.00043013,25]
[349166723,1737003033915,-500.0,0.00043013,25]
[349166724,1737003033925,-562.55656615,0.00043013,25]
[349166725,1737003033935,-500.0,0.00043013,25]
[349166726,1737003033945,-500.0,0.00043013,25]
[349166727,1737003033954,-500.0,0.00043013,25]
[349166728,1737003033964,-500.0,0.00043013,25]
[349166729,1737003033973,-500.0,0.00043013,25]
[349166730,1737003033983,-392.62649858,0.00043013,25]
[349166731,1737003033992,-500.0,0.00043013,25]
[349166732,1737003034002,-500.0,0.00043013,25]
[349166733,1737003034012,-500.0,0.00043013,25]
[349166734,1737003034021,-500.0,0.00043013,25]
[349166735,1737003034031,-500.0,0.00043013,25]
[349166736,1737003034040,-500.0,0.00043013,25]
[349166737,1737003034050,-500.0,0.00043013,25]
[349166738,1737003034059,-581.07,0.00043013,25]
[349166739,1737003034070,-500.0,0.00043013,25]
[349166740,1737003034079,-500.0,0.00043013,25]
[349166741,1737003034089,-330.04666086,0.00043013,25]
[349166742,1737003034099,-500.0,0.00043013,25]
[349166743,1737003034109,-500.0,0.00043013,25]
[349166744,1737003034119,-475.88492283,0.00043013,25]
[349166745,1737003034129,-500.0,0.00043013,25]
[349166746,1737003034138,-608.70422332,0.00043013,25]
[349166747,1737003034148,-500.0,0.00043013,25]
[349166748,1737003034158,-500.0,0.00043013,25]
[349166749,1737003034168,-500.0,0.00043013,25]
[349166750,1737003034178,-413.24,0.00043013,25]
[349166751,1737003034187,-500.0,0.00043013,25]
[349166752,1737003034197,-500.0,0.00043013,25]
[349166753,1737003034206,-500.0,0.00043013,25]
[349166754,1737003034215,-500.0,0.00043013,25]
[349166755,1737003034225,-500.0,0.00043013,25]
[349166756,1737003034234,-429.91,0.00043013,25]
[349166757,1737003034244,-500.0,0.00043013,25]
[349166758,1737003034254,-500.0,0.00043013,25]
[349166759,1737003034263,-500.0,0.00043013,25]
[349166760,1737003034273,-500.0,0.00043013,25]
[349166761,1737003034282,-500.0,0.00043013,25]
[349166762,1737003034291,-500.0,0.00043013,25]
[349166763,1737003034300,-500.0,0.00043013,25]
[349166764,1737003034310,-500.0,0.00043013,25]
[349166765,1737003034322,-500.0,0.00043013,25]
[349166766,1737003034332,-500.0,0.00043013,25]
[349166767,1737003034342,-527.56,0.00043013,25]
[349166768,1737003034353,-500.0,0.00043013,25]
[349166769,1737003034363,-500.0,0.00043013,25]
[349166770,1737003034373,-526.45,0.00043013,25]